[Event "*** MasterClass Titled Tuesday Blitz"]
[Site "Chess.com"]
[Date "2017.08.01"]
[Round "9"]
[White "lukas_111111"]
[Black "Marcus_Harvey"]
[Result "1/2-1/2"]
[WhiteElo "2412"]
[BlackElo "2562"]
[TimeControl "180+2"]
[EndTime "15:06:30 PDT"]
[Termination "Game drawn by 50-move rule"]

1. e4 {[%clk 0:03:01.9]} 1... e6 {[%clk 0:03:00.6]} 2. d4 {[%clk 0:03:01.9]}
2... d5 {[%clk 0:03:01.9]} 3. Nc3 {[%clk 0:03:02.7]} 3... Nf6 {[%clk 0:03:01.9]}
4. Bg5 {[%clk 0:03:02.7]} 4... dxe4 {[%clk 0:03:02.4]} 5. Nxe4 {[%clk
0:03:03.3]} 5... Be7 {[%clk 0:03:04]} 6. Bxf6 {[%clk 0:03:03.7]} 6... gxf6
{[%clk 0:03:05.5]} 7. Nf3 {[%clk 0:03:01.8]} 7... f5 {[%clk 0:03:07]} 8. Nc3
{[%clk 0:03:02.5]} 8... a6 {[%clk 0:03:06.7]} 9. Qe2 {[%clk 0:02:53.7]} 9... b5
{[%clk 0:03:04.8]} 10. O-O-O {[%clk 0:02:54.1]} 10... b4 {[%clk 0:03:06.4]} 11.
Na4 {[%clk 0:02:54.2]} 11... Qd5 {[%clk 0:03:07.6]} 12. Kb1 {[%clk 0:02:52.4]}
12... Nd7 {[%clk 0:03:06.9]} 13. Ne5 {[%clk 0:02:38.9]} 13... Nxe5 {[%clk
0:03:07.5]} 14. dxe5 {[%clk 0:02:39.9]} 14... Qc6 {[%clk 0:03:08.8]} 15. b3
{[%clk 0:02:39.1]} 15... Bb7 {[%clk 0:02:55.6]} 16. f3 {[%clk 0:02:39.5]} 16...
O-O {[%clk 0:02:55.6]} 17. Qc4 {[%clk 0:02:40]} 17... Rfd8 {[%clk 0:02:53.2]}
18. Be2 {[%clk 0:02:39.9]} 18... a5 {[%clk 0:02:45.9]} 19. Qxc6 {[%clk
0:02:25.5]} 19... Bxc6 {[%clk 0:02:46.4]} 20. Rxd8+ {[%clk 0:02:26.9]} 20...
Rxd8 {[%clk 0:02:46.7]} 21. Rd1 {[%clk 0:02:27.9]} 21... Rxd1+ {[%clk 0:02:38]}
22. Bxd1 {[%clk 0:02:28.4]} 22... Bxa4 {[%clk 0:02:33.3]} 23. bxa4 {[%clk
0:02:28.9]} 23... Bc5 {[%clk 0:02:34.6]} 24. Kb2 {[%clk 0:02:11.5]} 24... Bd4+
{[%clk 0:02:35.6]} 25. Kb3 {[%clk 0:02:12.6]} 25... Bxe5 {[%clk 0:02:36.6]} 26.
h3 {[%clk 0:02:12.5]} 26... c6 {[%clk 0:02:29.3]} 27. Be2 {[%clk 0:02:09.4]}
27... Kf8 {[%clk 0:02:29.1]} 28. Kc4 {[%clk 0:02:04.8]} 28... Bd6 {[%clk
0:02:29]} 29. g4 {[%clk 0:02:02.5]} 29... fxg4 {[%clk 0:02:25.6]} 30. hxg4
{[%clk 0:02:02.4]} 30... h6 {[%clk 0:02:25.7]} 31. Bd3 {[%clk 0:02:02.1]} 31...
Ke7 {[%clk 0:02:27]} 32. Be4 {[%clk 0:02:02.8]} 32... Kd7 {[%clk 0:02:28.3]} 33.
Bh7 {[%clk 0:02:01.9]} 33... f5 {[%clk 0:02:11.3]} 34. gxf5 {[%clk 0:02:00.9]}
34... h5 {[%clk 0:02:12.7]} 35. fxe6+ {[%clk 0:01:53.9]} 35... Kxe6 {[%clk
0:02:14.6]} 36. f4 {[%clk 0:01:44.9]} 36... Bxf4 {[%clk 0:02:09.4]} 37. Be4
{[%clk 0:01:45.7]} 37... Kd6 {[%clk 0:02:08.4]} 38. Bf3 {[%clk 0:01:40.8]} 38...
h4 {[%clk 0:02:09.7]} 39. Bg2 {[%clk 0:01:41.8]} 39... Be3 {[%clk 0:02:10.8]}
40. Kd3 {[%clk 0:01:41.9]} 40... Bf2 {[%clk 0:02:11.5]} 41. Kc4 {[%clk
0:01:42.7]} 41... Be1 {[%clk 0:02:05]} 42. Kd3 {[%clk 0:01:41.6]} 42... Kc5
{[%clk 0:02:01.1]} 43. Bh3 {[%clk 0:01:36.6]} 43... Bg3 {[%clk 0:01:54.4]} 44.
Bg2 {[%clk 0:01:35.5]} 44... Bc7 {[%clk 0:01:55.2]} 45. Bh3 {[%clk 0:01:35.9]}
45... Bb6 {[%clk 0:01:55.4]} 46. Bg2 {[%clk 0:01:36.3]} 46... Bd8 {[%clk
0:01:56.8]} 47. Bh3 {[%clk 0:01:36.9]} 47... Kd6 {[%clk 0:01:16.1]} 48. Ke4
{[%clk 0:01:35.7]} 48... c5 {[%clk 0:01:12.1]} 49. Bf1 {[%clk 0:01:28.8]} 49...
Bf6 {[%clk 0:01:05.4]} 50. Bh3 {[%clk 0:01:20.7]} 50... c4 {[%clk 0:01:02.7]}
51. Bf1 {[%clk 0:01:20]} 51... Kc5 {[%clk 0:01:02.8]} 52. Bh3 {[%clk 0:01:15]}
52... Bd8 {[%clk 0:01:03.7]} 53. Bf1 {[%clk 0:01:15.3]} 53... c3 {[%clk
0:01:03.1]} 54. Bh3 {[%clk 0:01:11.1]} 54... Bf6 {[%clk 0:01:01.8]} 55. Kf3
{[%clk 0:00:59.3]} 55... Kd4 {[%clk 0:00:58.3]} 56. Be6 {[%clk 0:00:56.5]} 56...
Be7 {[%clk 0:00:56.9]} 57. Bb3 {[%clk 0:00:54.7]} 57... Ke5 {[%clk 0:00:57]} 58.
Kg4 {[%clk 0:00:53.7]} 58... Ke4 {[%clk 0:00:58.5]} 59. Kh3 {[%clk 0:00:54.9]}
59... Kf3 {[%clk 0:00:59.7]} 60. Bd5+ {[%clk 0:00:55.1]} 60... Ke3 {[%clk
0:01:00.9]} 61. Be6 {[%clk 0:00:55.4]} 61... Ke2 {[%clk 0:01:01]} 62. Bd5 {[%clk
0:00:56.1]} 62... Kd2 {[%clk 0:01:02.1]} 63. Bb3 {[%clk 0:00:56.9]} 63... Kc1
{[%clk 0:01:03.6]} 64. Kg4 {[%clk 0:00:57.6]} 64... Kb2 {[%clk 0:01:05.1]} 65.
Kh3 {[%clk 0:00:58.7]} 65... Bd8 {[%clk 0:01:06.7]} 66. Kg4 {[%clk 0:00:59.8]}
66... Ka3 {[%clk 0:01:08.6]} 67. Kh3 {[%clk 0:01:00.8]} 67... Bf6 {[%clk
0:01:10.2]} 68. Kg4 {[%clk 0:01:01.7]} 68... Bg5 {[%clk 0:01:11.5]} 69. Kh3
{[%clk 0:00:48.7]} 69... Bf6 {[%clk 0:01:09.7]} 70. Kg4 {[%clk 0:00:49.4]} 70...
Kb2 {[%clk 0:01:11.2]} 71. Kh3 {[%clk 0:00:50.2]} 71... Kc1 {[%clk 0:01:12.7]}
72. Kg4 {[%clk 0:00:51.3]} 72... Kd2 {[%clk 0:01:14.2]} 73. Kh3 {[%clk
0:00:52.6]} 73... Ke2 {[%clk 0:01:15.5]} 74. Bc4+ {[%clk 0:00:53]} 74... Ke3
{[%clk 0:01:16.9]} 75. Bb3 {[%clk 0:00:54.1]} 75... Kf3 {[%clk 0:01:18.5]} 76.
Bc4 {[%clk 0:00:55]} 76... Kf4 {[%clk 0:01:20]} 77. Bb3 {[%clk 0:00:56.2]} 77...
Kg5 {[%clk 0:01:21.7]} 78. Bc4 {[%clk 0:00:55.6]} 78... Bd4 {[%clk 0:01:23.4]}
79. Bb3 {[%clk 0:00:56.4]} 79... Be3 {[%clk 0:01:24.9]} 80. Bc4 {[%clk
0:00:57.7]} 80... Bc1 {[%clk 0:01:25.5]} 81. Bb3 {[%clk 0:00:58.9]} 81... Ba3
{[%clk 0:01:27.4]} 82. Bc4 {[%clk 0:01:00.1]} 82... Bb2 {[%clk 0:01:29.3]} 83.
Bb3 {[%clk 0:01:00.3]} 83... Bc1 {[%clk 0:01:31.2]} 84. Bc4 {[%clk 0:01:01.7]}
84... Be3 {[%clk 0:01:32.7]} 85. Bb3 {[%clk 0:01:03.3]} 85... Bf2 {[%clk
0:01:34.4]} 86. Bc4 {[%clk 0:01:04.8]} 86... Be1 {[%clk 0:01:36.3]} 87. Bb3
{[%clk 0:01:06.2]} 87... Bg3 {[%clk 0:01:37.7]} 88. Bc4 {[%clk 0:01:07.7]} 88...
Kf4 {[%clk 0:01:39.3]} 89. Bb3 {[%clk 0:01:08.5]} 89... Kf3 {[%clk 0:01:40.9]}
90. Bc4 {[%clk 0:01:09.7]} 90... Ke3 {[%clk 0:01:41.9]} 91. Bb3 {[%clk
0:01:11.1]} 91... Kd4 {[%clk 0:01:43.6]} 92. Kg4 {[%clk 0:01:11.2]} 92... Kc5
{[%clk 0:01:44.6]} 93. Kh3 {[%clk 0:01:12.2]} 93... Kd6 {[%clk 0:01:46.2]} 94.
Kg4 {[%clk 0:01:13.4]} 94... Ke5 {[%clk 0:01:47.8]} 95. Kh3 {[%clk 0:01:14.7]}
95... Be1 {[%clk 0:01:49.6]} 96. Bc4 {[%clk 0:01:15.3]} 96... Bf2 {[%clk
0:01:51]} 97. Bb3 {[%clk 0:01:16.4]} 97... Kd4 {[%clk 0:01:52.2]} 98. Kg4 {[%clk
0:01:17.7]} 98... Ke3 {[%clk 0:01:52.8]} 99. Kh3 {[%clk 0:01:18.9]} 99... Be1
{[%clk 0:01:54.2]} 100. Bc4 {[%clk 0:01:19.7]} 100... Bg3 {[%clk 0:01:55.3]}
101. Bb3 {[%clk 0:01:20.7]} 101... Kd4 {[%clk 0:01:56.9]} 102. Kg4 {[%clk
0:01:21.7]} 102... Be1 {[%clk 0:01:58.2]} 103. Kh3 {[%clk 0:01:22.8]} 103... Ke5
{[%clk 0:02:00]} 104. Bc4 {[%clk 0:01:23.8]} 104... Kf6 {[%clk 0:02:01.5]} 105.
Bb3 {[%clk 0:01:24.9]} 105... Kg5 {[%clk 0:02:03]} 106. Bc4 {[%clk 0:01:25.4]}
106... Bd2 {[%clk 0:02:04.9]} 1/2-1/2

[Event "*** MasterClass Titled Tuesday Blitz"]
[Site "Chess.com"]
[Date "2017.08.01"]
[Round "9"]
[White "Ilja_Semjonovs"]
[Black "GM_dmitrij"]
[Result "0-1"]
[WhiteElo "2413"]
[BlackElo "2484"]
[TimeControl "180+2"]
[EndTime "15:06:42 PDT"]
[Termination "GM_dmitrij won by resignation"]

1. e4 {[%clk 0:03:01.9]} 1... e5 {[%clk 0:02:58.3]} 2. Nf3 {[%clk 0:03:01.4]}
2... Nc6 {[%clk 0:02:59.1]} 3. Bc4 {[%clk 0:02:58.8]} 3... Nf6 {[%clk
0:02:59.5]} 4. Ng5 {[%clk 0:02:56]} 4... d5 {[%clk 0:03:00.2]} 5. exd5 {[%clk
0:02:56]} 5... Na5 {[%clk 0:03:01.4]} 6. Bb5+ {[%clk 0:02:55.6]} 6... c6 {[%clk
0:03:02.9]} 7. dxc6 {[%clk 0:02:56.3]} 7... bxc6 {[%clk 0:03:04.8]} 8. Qf3
{[%clk 0:02:54.3]} 8... Be7 {[%clk 0:03:04.7]} 9. Bd3 {[%clk 0:02:49.7]} 9...
O-O {[%clk 0:02:59.6]} 10. b4 {[%clk 0:02:48.5]} 10... Nb7 {[%clk 0:02:55.6]}
11. Bb2 {[%clk 0:02:44.1]} 11... h6 {[%clk 0:02:40.9]} 12. Ne4 {[%clk
0:02:41.1]} 12... Nd5 {[%clk 0:02:30.2]} 13. Bxe5 {[%clk 0:02:36.1]} 13... Nxb4
{[%clk 0:02:30.2]} 14. O-O {[%clk 0:02:31.5]} 14... Nxd3 {[%clk 0:02:28.5]} 15.
cxd3 {[%clk 0:02:31.8]} 15... Be6 {[%clk 0:02:19.2]} 16. Nbc3 {[%clk 0:02:20.8]}
16... f6 {[%clk 0:02:17]} 17. Bf4 {[%clk 0:02:15.5]} 17... Qd7 {[%clk
0:02:07.4]} 18. Rfe1 {[%clk 0:01:57.7]} 18... f5 {[%clk 0:02:05.4]} 19. Ng3
{[%clk 0:01:53.5]} 19... Nc5 {[%clk 0:01:53.4]} 20. d4 {[%clk 0:01:27.4]} 20...
Qxd4 {[%clk 0:01:40.1]} 21. Nh5 {[%clk 0:01:02.5]} 21... Qd7 {[%clk 0:01:25]}
22. Be5 {[%clk 0:00:56.2]} 22... Rf7 {[%clk 0:01:22.5]} 23. d4 {[%clk
0:00:42.8]} 23... Nb7 {[%clk 0:01:23.1]} 24. Nf4 {[%clk 0:00:39.9]} 24... Bc4
{[%clk 0:01:19.2]} 25. Rad1 {[%clk 0:00:38]} 25... Bg5 {[%clk 0:01:12]} 26. d5
{[%clk 0:00:32.6]} 26... cxd5 {[%clk 0:01:12.9]} 27. Nfxd5 {[%clk 0:00:32.3]}
27... Qc8 {[%clk 0:00:53.7]} 28. Bf4 {[%clk 0:00:24.1]} 28... Bxf4 {[%clk
0:00:44.2]} 29. Qxf4 {[%clk 0:00:23.5]} 29... Bxd5 {[%clk 0:00:38.5]} 30. Nxd5
{[%clk 0:00:23.6]} 30... Qf8 {[%clk 0:00:39.7]} 31. Nc7 {[%clk 0:00:15.9]} 31...
Rd8 {[%clk 0:00:38.1]} 32. Ne6 {[%clk 0:00:16.1]} 32... Rxd1 {[%clk 0:00:36.7]}
33. Rxd1 {[%clk 0:00:17.3]} 33... Qe8 {[%clk 0:00:34.6]} 34. Nd4 {[%clk
0:00:16.3]} 34... Rd7 {[%clk 0:00:32.6]} 35. Qe3 {[%clk 0:00:12.4]} 35... Qxe3
{[%clk 0:00:31.9]} 36. fxe3 {[%clk 0:00:13.3]} 36... g6 {[%clk 0:00:33.5]} 37.
Kf2 {[%clk 0:00:12.7]} 37... Kf7 {[%clk 0:00:33.8]} 38. Rc1 {[%clk 0:00:12]}
38... Nd6 {[%clk 0:00:34.9]} 39. Kf3 {[%clk 0:00:11.9]} 39... Ne4 {[%clk
0:00:35.3]} 40. Rc6 {[%clk 0:00:11.9]} 40... Re7 {[%clk 0:00:31.1]} 41. Ke2
{[%clk 0:00:06.3]} 41... Nf6 {[%clk 0:00:31.3]} 42. Kd3 {[%clk 0:00:06.5]} 42...
Ng4 {[%clk 0:00:32.3]} 43. Nc2 {[%clk 0:00:06.5]} 43... Nxh2 {[%clk 0:00:33.3]}
44. Ra6 {[%clk 0:00:06.9]} 44... Ng4 {[%clk 0:00:34.4]} 45. Kd2 {[%clk 0:00:07]}
45... h5 {[%clk 0:00:35.7]} 46. Ke2 {[%clk 0:00:07]} 46... Kg7 {[%clk
0:00:36.6]} 47. Kf3 {[%clk 0:00:07.3]} 47... Kh6 {[%clk 0:00:38]} 48. g3 {[%clk
0:00:07.5]} 48... Kg5 {[%clk 0:00:38.4]} 49. Ke2 {[%clk 0:00:06.8]} 49... Ne5
{[%clk 0:00:34.1]} 50. Kd2 {[%clk 0:00:05.2]} 50... Kg4 {[%clk 0:00:35]} 51. Nd4
{[%clk 0:00:04.3]} 51... Kxg3 {[%clk 0:00:34.7]} 52. Ne2+ {[%clk 0:00:03.6]}
52... Kg4 {[%clk 0:00:33]} 53. Ra4+ {[%clk 0:00:04.3]} 53... Kg5 {[%clk
0:00:32.7]} 54. Nf4 {[%clk 0:00:04.9]} 54... h4 {[%clk 0:00:31.3]} 55. Nh3+
{[%clk 0:00:04.2]} 55... Kh5 {[%clk 0:00:32.8]} 56. Nf4+ {[%clk 0:00:04.8]}
56... Kh6 {[%clk 0:00:34.2]} 57. Ra6 {[%clk 0:00:05.3]} 57... Kg5 {[%clk
0:00:32.5]} 58. Ra4 {[%clk 0:00:03.4]} 58... Ng4 {[%clk 0:00:32.3]} 59. Nh3+
{[%clk 0:00:03.8]} 59... Kh6 {[%clk 0:00:31.4]} 60. Nf4 {[%clk 0:00:03.5]} 60...
Nxe3 {[%clk 0:00:30.1]} 61. Ra6 {[%clk 0:00:03.9]} 61... Nc4+ {[%clk 0:00:31.3]}
62. Kc3 {[%clk 0:00:04.5]} 62... Ne5 {[%clk 0:00:33.2]} 63. Kd4 {[%clk
0:00:04.8]} 63... Kg5 {[%clk 0:00:33.8]} 64. Nd5 {[%clk 0:00:05]} 64... Re8
{[%clk 0:00:30.4]} 65. Nf6 {[%clk 0:00:05.8]} 65... Nf3+ {[%clk 0:00:30.9]} 66.
Kc3 {[%clk 0:00:06.2]} 66... Re7 {[%clk 0:00:32.2]} 67. Kd3 {[%clk 0:00:05.9]}
67... h3 {[%clk 0:00:33]} 68. Ng8 {[%clk 0:00:05.6]} 68... Rg7 {[%clk
0:00:31.8]} 69. Ke3 {[%clk 0:00:05.9]} 69... h2 {[%clk 0:00:32.1]} 0-1

[Event "*** MasterClass Titled Tuesday Blitz"]
[Site "Chess.com"]
[Date "2017.08.01"]
[Round "10"]
[White "jeaston1"]
[Black "matej2221"]
[Result "0-1"]
[WhiteElo "2196"]
[BlackElo "2266"]
[TimeControl "180+2"]
[EndTime "15:11:15 PDT"]
[Termination "matej2221 won by resignation"]

1. d4 {[%clk 0:03:01.9]} 1... d5 {[%clk 0:02:59.9]} 2. c4 {[%clk 0:03:03.2]}
2... c6 {[%clk 0:03:01.1]} 3. Nc3 {[%clk 0:03:03.6]} 3... Nf6 {[%clk 0:03:02.1]}
4. e3 {[%clk 0:03:03.8]} 4... a6 {[%clk 0:03:01.5]} 5. b3 {[%clk 0:03:03.1]}
5... Bf5 {[%clk 0:02:54]} 6. Nge2 {[%clk 0:02:59.5]} 6... e6 {[%clk 0:02:54]} 7.
Ng3 {[%clk 0:03:00.1]} 7... Bg6 {[%clk 0:02:55.3]} 8. h4 {[%clk 0:02:58.8]} 8...
h5 {[%clk 0:02:53.1]} 9. Be2 {[%clk 0:02:59.3]} 9... Bd6 {[%clk 0:02:50.6]} 10.
O-O {[%clk 0:02:59.4]} 10... Ng4 {[%clk 0:02:30.4]} 11. Bxg4 {[%clk 0:02:33.1]}
11... hxg4 {[%clk 0:02:31.1]} 12. Qxg4 {[%clk 0:02:33.4]} 12... Rxh4 {[%clk
0:02:29.5]} 13. Qf3 {[%clk 0:02:32.2]} 13... Be4 {[%clk 0:02:03.1]} 14. Ncxe4
{[%clk 0:02:27.5]} 14... dxe4 {[%clk 0:02:04]} 15. Nxe4 {[%clk 0:02:01.2]} 15...
Bh2+ {[%clk 0:01:37.2]} 16. Kh1 {[%clk 0:02:01]} 16... Bg3+ {[%clk 0:01:38.4]}
17. Kg1 {[%clk 0:02:00.7]} 17... Rh1+ {[%clk 0:01:38.5]} 0-1

[Event "*** MasterClass Titled Tuesday Blitz"]
[Site "Chess.com"]
[Date "2017.08.01"]
[Round "10"]
[White "GMKrikor"]
[Black "MateusViageiro"]
[Result "1-0"]
[WhiteElo "2493"]
[BlackElo "2307"]
[TimeControl "180+2"]
[EndTime "15:12:19 PDT"]
[Termination "GMKrikor won by resignation"]

1. e4 {[%clk 0:03:01.9]} 1... e5 {[%clk 0:02:59.3]} 2. Nf3 {[%clk 0:03:02.9]}
2... Nc6 {[%clk 0:03:00.3]} 3. Bb5 {[%clk 0:03:02.5]} 3... a6 {[%clk 0:03:00.6]}
4. Ba4 {[%clk 0:03:03.8]} 4... Nf6 {[%clk 0:03:01.6]} 5. O-O {[%clk 0:03:03.9]}
5... Be7 {[%clk 0:03:00.8]} 6. d3 {[%clk 0:02:57.4]} 6... b5 {[%clk 0:03:01.1]}
7. Bb3 {[%clk 0:02:58.7]} 7... d6 {[%clk 0:03:02.2]} 8. a4 {[%clk 0:02:59]} 8...
Rb8 {[%clk 0:03:02]} 9. c3 {[%clk 0:02:55.7]} 9... O-O {[%clk 0:03:00.4]} 10.
Bc2 {[%clk 0:02:53.7]} 10... b4 {[%clk 0:02:55.8]} 11. Nbd2 {[%clk 0:02:53.8]}
11... Na7 {[%clk 0:02:41.1]} 12. d4 {[%clk 0:02:45.7]} 12... Nd7 {[%clk
0:02:37.6]} 13. Nc4 {[%clk 0:02:36.3]} 13... Bf6 {[%clk 0:02:35.8]} 14. Be3
{[%clk 0:02:18.1]} 14... Nc6 {[%clk 0:02:34.4]} 15. a5 {[%clk 0:02:11.1]} 15...
Re8 {[%clk 0:02:09.9]} 16. Ba4 {[%clk 0:02:05.6]} 16... Bb7 {[%clk 0:02:02.1]}
17. d5 {[%clk 0:02:01.7]} 17... Ne7 {[%clk 0:02:01]} 18. cxb4 {[%clk 0:02:03.2]}
18... Ng6 {[%clk 0:01:52]} 19. b5 {[%clk 0:01:45.9]} 19... axb5 {[%clk
0:01:49.6]} 20. Bxb5 {[%clk 0:01:47.5]} 20... Ba8 {[%clk 0:01:49.8]} 21. Qa4
{[%clk 0:01:43.5]} 21... Ngf8 {[%clk 0:01:41.2]} 22. a6 {[%clk 0:01:37.4]} 22...
Re7 {[%clk 0:01:34.1]} 23. a7 {[%clk 0:01:37.7]} 23... Rc8 {[%clk 0:01:31.6]}
24. Ba6 {[%clk 0:01:33.7]} 1-0

[Event "*** MasterClass Titled Tuesday Blitz"]
[Site "Chess.com"]
[Date "2017.08.01"]
[Round "10"]
[White "Rsnr"]
[Black "SuperBlitz"]
[Result "0-1"]
[WhiteElo "2508"]
[BlackElo "2489"]
[TimeControl "180+2"]
[EndTime "15:13:04 PDT"]
[Termination "SuperBlitz won by resignation"]

1. d4 {[%clk 0:03:01.9]} 1... g6 {[%clk 0:03:01]} 2. Nf3 {[%clk 0:03:00.8]} 2...
Bg7 {[%clk 0:03:02.5]} 3. g3 {[%clk 0:03:02.5]} 3... b6 {[%clk 0:03:01.9]} 4.
Bg2 {[%clk 0:03:03.5]} 4... Bb7 {[%clk 0:03:03.6]} 5. O-O {[%clk 0:03:04.9]}
5... e6 {[%clk 0:03:05.3]} 6. c4 {[%clk 0:03:06.3]} 6... Ne7 {[%clk 0:03:06.8]}
7. Nc3 {[%clk 0:03:07.8]} 7... d6 {[%clk 0:03:08.4]} 8. b3 {[%clk 0:03:05.6]}
8... Nd7 {[%clk 0:03:09.6]} 9. Bb2 {[%clk 0:03:07.1]} 9... h6 {[%clk 0:03:11]}
10. e3 {[%clk 0:03:08.6]} 10... a6 {[%clk 0:03:12.3]} 11. Qe2 {[%clk 0:03:10.2]}
11... O-O {[%clk 0:03:13.1]} 12. Rac1 {[%clk 0:03:11.5]} 12... f5 {[%clk
0:03:13.7]} 13. Rfd1 {[%clk 0:03:12.9]} 13... g5 {[%clk 0:03:13.3]} 14. b4
{[%clk 0:03:08.7]} 14... Nf6 {[%clk 0:03:09.4]} 15. d5 {[%clk 0:02:44.3]} 15...
e5 {[%clk 0:03:10]} 16. c5 {[%clk 0:02:14.9]} 16... Ng6 {[%clk 0:03:09.4]} 17.
cxb6 {[%clk 0:02:02.5]} 17... cxb6 {[%clk 0:03:09.9]} 18. b5 {[%clk 0:02:04]}
18... g4 {[%clk 0:03:07.3]} 19. Nd2 {[%clk 0:02:03.7]} 19... h5 {[%clk
0:03:07.5]} 20. bxa6 {[%clk 0:01:51.8]} 20... Bxa6 {[%clk 0:03:08.3]} 21. Nb5
{[%clk 0:01:53.4]} 21... Rf7 {[%clk 0:02:57]} 22. Rc6 {[%clk 0:01:53.9]} 22...
Bf8 {[%clk 0:02:57.9]} 23. a4 {[%clk 0:01:50.8]} 23... Bb7 {[%clk 0:02:52.4]}
24. Nc4 {[%clk 0:01:45.7]} 24... Rxa4 {[%clk 0:02:33.9]} 25. Ncxd6 {[%clk
0:01:42.7]} 25... Bxc6 {[%clk 0:02:19.4]} 26. Nxf7 {[%clk 0:01:43.8]} 26... Bxb5
{[%clk 0:01:38.6]} 27. Qxb5 {[%clk 0:01:45.7]} 27... Qa8 {[%clk 0:01:35.4]} 28.
d6 {[%clk 0:01:21.8]} 28... Qa5 {[%clk 0:01:10.3]} 0-1

[Event "*** MasterClass Titled Tuesday Blitz"]
[Site "Chess.com"]
[Date "2017.08.01"]
[Round "10"]
[White "livestrong04"]
[Black "Saitama_Hero"]
[Result "1-0"]
[WhiteElo "2367"]
[BlackElo "2230"]
[TimeControl "180+2"]
[EndTime "15:13:07 PDT"]
[Termination "livestrong04 won by resignation"]

1. e4 {[%clk 0:03:00.8]} 1... d6 {[%clk 0:03:01.9]} 2. d4 {[%clk 0:03:01.8]}
2... e5 {[%clk 0:03:03.8]} 3. Nc3 {[%clk 0:03:03.4]} 3... exd4 {[%clk
0:03:04.2]} 4. Qxd4 {[%clk 0:03:05.3]} 4... Nc6 {[%clk 0:03:05.7]} 5. Qe3 {[%clk
0:03:06.9]} 5... Nf6 {[%clk 0:03:04.8]} 6. Bd2 {[%clk 0:03:08.4]} 6... g6 {[%clk
0:03:04.1]} 7. O-O-O {[%clk 0:03:09.4]} 7... Bg7 {[%clk 0:03:05.7]} 8. f3 {[%clk
0:03:10.3]} 8... O-O {[%clk 0:03:06.1]} 9. g4 {[%clk 0:03:11.9]} 9... Be6 {[%clk
0:02:46.8]} 10. g5 {[%clk 0:03:09.1]} 10... Nd7 {[%clk 0:02:40.7]} 11. h4 {[%clk
0:03:06.2]} 11... Nc5 {[%clk 0:02:40.2]} 12. h5 {[%clk 0:03:04.7]} 12... Qe7
{[%clk 0:02:36.1]} 13. f4 {[%clk 0:03:01.8]} 13... Rae8 {[%clk 0:02:28]} 14. Bg2
{[%clk 0:02:51.2]} 14... Nb4 {[%clk 0:02:18.3]} 15. a3 {[%clk 0:02:39.3]} 15...
Na2+ {[%clk 0:02:01.9]} 16. Kb1 {[%clk 0:02:33.1]} 16... Nxc3+ {[%clk
0:02:00.2]} 17. Bxc3 {[%clk 0:02:34.9]} 17... Bxc3 {[%clk 0:01:56.5]} 18. Qxc3
{[%clk 0:02:36.8]} 18... Bg4 {[%clk 0:01:54.9]} 19. Re1 {[%clk 0:02:27.9]} 19...
gxh5 {[%clk 0:01:43.1]} 20. Bf3 {[%clk 0:02:22.6]} 20... f5 {[%clk 0:01:32.4]}
21. gxf6 {[%clk 0:02:19.2]} 21... Qxf6 {[%clk 0:01:30.6]} 22. e5 {[%clk
0:02:15.4]} 22... Qxf4 {[%clk 0:01:26.3]} 23. Bd5+ {[%clk 0:02:14.6]} 23... Be6
{[%clk 0:01:22.1]} 24. Nh3 {[%clk 0:02:15.5]} 24... Na4 {[%clk 0:00:52.9]} 25.
Bxe6+ {[%clk 0:02:05]} 25... Rxe6 {[%clk 0:00:51.6]} 26. Qb3 {[%clk 0:02:06.4]}
1-0

[Event "*** MasterClass Titled Tuesday Blitz"]
[Site "Chess.com"]
[Date "2017.08.01"]
[Round "10"]
[White "Giraffe_Chess"]
[Black "1lec"]
[Result "1-0"]
[WhiteElo "2220"]
[BlackElo "2061"]
[TimeControl "180+2"]
[EndTime "15:14:03 PDT"]
[Termination "Giraffe_Chess won by resignation"]

1. e4 {[%clk 0:03:01.9]} 1... e5 {[%clk 0:02:53.7]} 2. Nf3 {[%clk 0:03:02.7]}
2... Nc6 {[%clk 0:02:55.3]} 3. Nc3 {[%clk 0:03:04.1]} 3... Nf6 {[%clk
0:02:55.4]} 4. d4 {[%clk 0:03:05.6]} 4... exd4 {[%clk 0:02:57]} 5. Nxd4 {[%clk
0:03:07.3]} 5... Bb4 {[%clk 0:02:58.6]} 6. Nxc6 {[%clk 0:03:07.4]} 6... bxc6
{[%clk 0:03:00.2]} 7. Bd3 {[%clk 0:03:08.8]} 7... d5 {[%clk 0:03:01]} 8. exd5
{[%clk 0:03:08.8]} 8... cxd5 {[%clk 0:03:03]} 9. Qe2+ {[%clk 0:03:09]} 9... Qe7
{[%clk 0:02:59.6]} 10. Qxe7+ {[%clk 0:03:04.3]} 10... Bxe7 {[%clk 0:02:57.1]}
11. O-O {[%clk 0:03:01.5]} 11... O-O {[%clk 0:02:56.7]} 12. Re1 {[%clk
0:03:02.2]} 12... Bd8 {[%clk 0:02:36.5]} 13. Bf4 {[%clk 0:03:00.5]} 13... c6
{[%clk 0:02:33.1]} 14. Na4 {[%clk 0:02:48.1]} 14... Bg4 {[%clk 0:02:16.8]} 15.
h3 {[%clk 0:02:37.3]} 15... Bh5 {[%clk 0:02:16.6]} 16. Bd6 {[%clk 0:02:15.9]}
16... Re8 {[%clk 0:02:07]} 17. Rxe8+ {[%clk 0:02:04.2]} 17... Nxe8 {[%clk
0:02:09]} 18. Bc5 {[%clk 0:02:02.7]} 18... Bf6 {[%clk 0:02:04.4]} 19. Re1 {[%clk
0:01:58.4]} 19... Nc7 {[%clk 0:01:55.6]} 20. f4 {[%clk 0:01:17.9]} 20... Ne6
{[%clk 0:01:26.3]} 21. Be3 {[%clk 0:01:15.1]} 21... Nd4 {[%clk 0:00:36.2]} 22.
c3 {[%clk 0:01:01.9]} 22... Ne6 {[%clk 0:00:02.7]} 1-0